fUST/lending_fUST_20260217
["ID","MTS","AMOUNT","RATE_DAILY","PERIOD"]
[405816203,1771333862288,-1095.31,0.00021095,2]
[405816204,1771333862298,-593.16,0.00021095,2]
[405816205,1771333862307,-500.0,0.00021095,2]
[405816206,1771333862317,-737.15,0.00021095,2]
[405816207,1771333862327,-1099.82,0.00021095,2]
[405816208,1771333862338,-41414.35,0.00021095,2]
[405816209,1771333862348,-3000.0,0.000211,2]
[405816210,1771333862357,-250.0,0.000211,10]
[405816211,1771333862366,-3000.0,0.0002111,2]
[405816212,1771333862375,-3000.0,0.0002112,2]
[405816213,1771333862385,-3000.0,0.0002113,2]
[405816214,1771333862458,-3000.0,0.0002114,2]
[405816215,1771333862472,-3000.0,0.0002115,2]
[405816216,1771333862482,-3000.0,0.0002116,2]
[405816217,1771333862491,-3000.0,0.0002117,2]
[405816218,1771333862501,-3000.0,0.0002118,2]
[405816219,1771333862512,-3000.0,0.0002119,2]
[405816220,1771333862522,-3000.0,0.000212,2]
[405816221,1771333862531,-980.10045765,0.00021208,46]
[405816222,1771333862540,-3899.034271,0.0002121,2]
[405816223,1771333862549,-181.0,0.00021274,2]
[405816224,1771333862559,-1000.0,0.00021313,10]
[405816225,1771333862568,-500.0,0.00021369,2]
[405816226,1771333862578,-536.39,0.00021369,2]
[405816227,1771333862587,-687.5,0.00021369,2]
[405816228,1771333862596,-576.95,0.00021369,2]
[405816229,1771333862605,-500.0,0.00021369,2]
[405816230,1771333862616,-500.0,0.00021369,2]
[405816231,1771333862627,-500.0,0.00021369,2]
[405816232,1771333862636,-535.7,0.00021369,2]
[405816233,1771333862645,-339.2,0.00021369,2]
[405816234,1771333862655,-516.83,0.00021369,2]
[405816235,1771333862665,-745.29,0.00021369,2]
[405816236,1771333862674,-5962.75,0.00021369,2]
[405816237,1771333862684,-2833.52,0.00021369,2]
[405816238,1771333862694,-794.37,0.00021369,2]
[405816239,1771333862703,-676.25,0.00021369,2]
[405816240,1771333862713,-500.0,0.00021369,2]
[405816241,1771333862722,-640.78,0.00021369,2]
[405816242,1771333862732,-500.0,0.00021369,2]
[405816243,1771333862741,-1641.04,0.00021369,2]
[405816244,1771333862751,-500.0,0.00021369,2]
[405816245,1771333862761,-8287.17,0.00021369,2]
[405816246,1771333862770,-1095.31,0.00021369,2]
[405816247,1771333862780,-593.16,0.00021369,2]
[405816248,1771333862789,-500.0,0.00021369,2]
[405816249,1771333862799,-737.15,0.00021369,2]
[405816250,1771333862808,-1099.82,0.00021369,2]
[405816251,1771333862818,-41414.35,0.00021369,2]
[405816252,1771333862827,-160.07683315,0.00021408,48]
[405816253,1771333862836,-1044.42532689,0.000215,2]
[405816254,1771333862845,-12920.87609413,0.000215,2]
[405816255,1771333862855,-328.25105604,0.00021643,2]
[405816256,1771333862865,-536.39,0.00021643,2]
[405816257,1771333862874,-687.5,0.00021643,2]
[405816258,1771333862883,-576.95,0.00021643,2]
[405816259,1771333862893,-500.0,0.00021643,2]
[405816260,1771333862902,-500.0,0.00021643,2]
[405816261,1771333862912,-500.0,0.00021643,2]
[405816262,1771333862921,-535.7,0.00021643,2]
[405816263,1771333862930,-516.83,0.00021643,2]
[405816264,1771333862940,-745.29,0.00021643,2]
[405816265,1771333862949,-5962.75,0.00021643,2]
[405816266,1771333862959,-2833.52,0.00021643,2]
[405816267,1771333862968,-794.37,0.00021643,2]
[405816268,1771333862977,-676.25,0.00021643,2]
[405816269,1771333862987,-500.0,0.00021643,2]
[405816270,1771333862997,-640.78,0.00021643,2]
[405816271,1771333863007,-500.0,0.00021643,2]
[405816272,1771333863015,-1641.04,0.00021643,2]
[405816273,1771333863025,-500.0,0.00021643,2]
[405816274,1771333863035,-8287.17,0.00021643,2]
[405816275,1771333863044,-1095.31,0.00021643,2]
[405816276,1771333863054,-593.16,0.00021643,2]
[405816277,1771333863063,-503.76,0.00021643,2]
[405816278,1771333863074,-737.15,0.00021643,2]
[405816279,1771333863083,-1099.82,0.00021643,2]
[405816280,1771333863093,-41414.35,0.00021643,2]
[405816281,1771333863102,-980.10045765,0.00021675,50]
[405816282,1771333863113,-491.2508648,0.00021917,2]
[405816283,1771333863122,-536.39,0.00021917,2]
[405816284,1771333863131,-687.5,0.00021917,2]
[405816285,1771333863141,-576.95,0.00021917,2]
[405816286,1771333863151,-500.0,0.00021917,2]
[405816287,1771333863160,-500.0,0.00021917,2]
[405816288,1771333863174,-500.0,0.00021917,2]
[405816289,1771333863183,-535.7,0.00021917,2]
[405816290,1771333863193,-516.83,0.00021917,2]
[405816291,1771333863205,-745.29,0.00021917,2]
[405816292,1771333863215,-5962.75,0.00021917,2]
[405816293,1771333863225,-2833.52,0.00021917,2]
[405816294,1771333863236,-794.37,0.00021917,2]
[405816295,1771333863247,-676.25,0.00021917,2]
[405816296,1771333863255,-500.0,0.00021917,2]
[405816297,1771333863265,-640.78,0.00021917,2]
[405816298,1771333863275,-500.0,0.00021917,2]
[405816299,1771333863284,-1641.04,0.00021917,2]
[405816300,1771333863294,-500.0,0.00021917,2]
[405816301,1771333863303,-8287.17,0.00021917,2]
[405816302,1771333863313,-1095.31,0.00021917,2]
[405816303,1771333863323,-593.16,0.00021917,2]
[405816304,1771333863332,-737.15,0.00021917,2]
[405816305,1771333863341,-1099.82,0.00021917,2]
[405816306,1771333863349,-675.168802,0.00021918,2]
[405816307,1771333863357,-675.168802,0.00021918,2]
[405816308,1771333863368,-675.168802,0.00021918,2]
[405816309,1771333863376,-675.168802,0.00021918,2]
[405816310,1771333863385,-675.168802,0.00021918,2]
[405816311,1771333863393,-675.168802,0.00021918,2]
[405816312,1771333863403,-675.168802,0.00021918,2]
[405816313,1771333863413,-675.168802,0.00021918,2]
[405816314,1771333863422,-675.168802,0.00021918,2]
[405816315,1771333863431,-675.168802,0.00021918,2]
[405816316,1771333863441,-675.168802,0.00021918,2]
[405816317,1771333863450,-675.168802,0.00021918,2]
[405816318,1771333863459,-675.168802,0.00021918,2]
[405816319,1771333863468,-675.168802,0.00021918,2]
[405816320,1771333863477,-675.168802,0.00021918,2]
[405816321,1771333863486,-675.168802,0.00021918,2]
[405816322,1771333863496,-675.168802,0.00021918,2]
[405816323,1771333863505,-675.168802,0.00021918,2]
[405816324,1771333863515,-675.168802,0.00021918,2]
[405816325,1771333863524,-675.168797,0.00021918,2]
[405816326,1771333863535,-177.498764,0.00021918,2]
[405816327,1771333863544,-151.0,0.00021918,2]
[405816328,1771333863554,-151.0,0.00021918,2]
[405816329,1771333863564,-151.0,0.00021918,2]
[405816330,1771333863573,-151.0,0.00021918,2]
[405816331,1771333863582,-282.010329,0.00021918,2]
[405816332,1771333863592,-150.0,0.00021918,2]
[405816333,1771333863602,-150.0,0.00021918,2]
[405816334,1771333863611,-204.89,0.00021922,2]
[405816335,1771333863689,-165.58,0.00022,7]
[405816336,1771333863700,-168.53,0.00022,2]
[405816337,1771333863711,-513.77,0.000221,2]
[405816338,1771333863721,-980.10045765,0.00022143,54]
[405816339,1771333863732,-536.39,0.00022191,2]
[405816340,1771333863742,-687.5,0.00022191,2]
[405816341,1771333863751,-576.95,0.00022191,2]
[405816342,1771333863761,-171.96143344,0.00022191,2]
[405816343,1771333863771,-391.91956439,0.00022191,2]
[405816344,1771333863781,-500.0,0.00022191,2]
[405816345,1771333863791,-535.7,0.00022191,2]
[405816346,1771333863801,-516.83,0.00022191,2]
[405816347,1771333863811,-745.29,0.00022191,2]
[405816348,1771333863820,-5962.75,0.00022191,2]
[405816349,1771333863830,-2833.52,0.00022191,2]
[405816350,1771333863840,-794.37,0.00022191,2]
[405816351,1771333863850,-676.25,0.00022191,2]
[405816352,1771333863859,-500.0,0.00022191,2]
[405816353,1771333863873,-640.78,0.00022191,2]
[405816354,1771333863883,-572.89,0.00022191,2]
[405816355,1771333863895,-1641.04,0.00022191,2]
[405816356,1771333863905,-500.0,0.00022191,2]
[405816357,1771333863914,-8287.17,0.00022191,2]
[405816358,1771333863924,-1095.31,0.00022191,2]
[405816359,1771333863934,-593.16,0.00022191,2]
[405816360,1771333863943,-737.15,0.00022191,2]
[405816361,1771333863953,-1099.82,0.00022191,2]
[405816362,1771333863962,-402.33851225,0.00022247,2]
[405816363,1771333863972,-153.93298402,0.00022301,2]
[405816364,1771333863981,-536.39,0.00022465,2]
[405816365,1771333863991,-687.5,0.00022465,2]
[405816366,1771333864001,-576.95,0.00022465,2]
[405816367,1771333864010,-349.46782913,0.00022465,2]
[405816368,1771333864020,-535.7,0.00022465,2]
[405816369,1771333864029,-516.83,0.00022465,2]
[405816370,1771333864039,-745.29,0.00022465,2]
[405816371,1771333864049,-5962.75,0.00022465,2]
[405816372,1771333864058,-2833.52,0.00022465,2]
[405816373,1771333864067,-794.37,0.00022465,2]
[405816374,1771333864077,-676.25,0.00022465,2]
[405816375,1771333864087,-500.0,0.00022465,2]
[405816376,1771333864096,-640.78,0.00022465,2]
[405816377,1771333864106,-1641.04,0.00022465,2]
[405816378,1771333864119,-217.27422016,0.00022465,2]
[405816379,1771333864129,-8287.17,0.00022465,2]
[405816380,1771333864139,-1095.31,0.00022465,2]
[405816381,1771333864149,-593.16,0.00022465,2]
[405816382,1771333864158,-737.15,0.00022465,2]
[405816383,1771333864171,-1099.82,0.00022465,2]
[405816384,1771333864181,-300.0,0.00022466,2]
[405816385,1771333864191,-250.0,0.00022466,2]
[405816386,1771333864200,-1038.33550269,0.000225,2]
[405816387,1771333864211,-904.97,0.000225,14]
[405816388,1771333864220,-206.31941859,0.000225,2]
[405816389,1771333864230,-370.0,0.0002258,15]
[405816390,1771333864242,-980.10045765,0.0002261,57]
[405816391,1771333864252,-1613.0,0.00022693,2]
[405816392,1771333864261,-8185.63,0.000227,2]
[405816393,1771333864271,-300.38508798,0.00022707,56]
[405816394,1771333864280,-536.45291355,0.00022739,2]
[405816395,1771333864290,-687.69669702,0.00022739,2]
[405816396,1771333864299,-576.99132555,0.00022739,2]
[405816397,1771333864308,-535.86772183,0.00022739,2]
[405816398,1771333864317,-516.92344925,0.00022739,2]
[405816399,1771333864327,-745.4344444,0.00022739,2]
[405816400,1771333864336,-5962.81,0.00022739,2]
[405816401,1771333864345,-2833.58595946,0.00022739,2]
[405816402,1771333864355,-794.56530937,0.00022739,2]
[405816403,1771333864365,-676.2582017,0.00022739,2]
[405816404,1771333864374,-383.69919637,0.00022739,2]
[405816405,1771333864382,-641.01118995,0.00022739,2]
[405816406,1771333864392,-1641.2,0.00022739,2]
[405816407,1771333864401,-8287.31,0.00022739,2]
[405816408,1771333864410,-1095.49638621,0.00022739,2]
[405816409,1771333864420,-593.26039786,0.00022739,2]
[405816410,1771333864429,-737.349942,0.00022739,2]
[405816411,1771333864439,-1099.86811372,0.00022739,2]
[405816412,1771333864448,-158.02,0.00022824,2]
[405816413,1771333864457,-4261.0,0.00022829,7]
[405816414,1771333864466,-203.117,0.00022895,2]
[405816415,1771333864476,-168.53,0.000229,2]
[405816416,1771333864486,-288.81790643,0.00023,3]
[405816417,1771333864495,-743.20205712,0.00023,3]
[405816418,1771333864504,-450.0,0.00023014,2]
[405816419,1771333864513,-350.0,0.00023014,2]
[405816420,1771333864522,-200.0,0.00023023,120]
[405816421,1771333864532,-980.10045765,0.00023077,61]
[405816422,1771333864541,-200.0,0.00023186,120]
[405816423,1771333864550,-158.02,0.00023193,2]
[405816424,1771333864559,-165.58,0.000232,7]
[405816425,1771333864568,-160.07683315,0.00023344,63]
[405816426,1771333864578,-1000.0,0.00023445,10]
[405816427,1771333864587,-244.0,0.00023445,10]
[405816428,1771333864596,-239.0,0.00023448,14]
[405816429,1771333864606,-51314.96324279,0.000235,2]
[405816430,1771333864615,-980.10045765,0.00023545,65]
[405816431,1771333864624,-6881.78324678,0.00023549,120]
[405816432,1771333864633,-600.0,0.00023562,2]
[405816433,1771333864643,-450.0,0.00023562,2]
[405816434,1771333864652,-45571.54062287,0.00024,2]
[405816435,1771333864661,-49810.55348895,0.00024,2]
[405816436,1771333864670,-1744.61416467,0.00024,2]
[405816437,1771333864680,-467.96463536,0.00024,2]
[405816438,1771333864689,-170427.49619554,0.00024,10]
[405816439,1771333864699,-743.45912368,0.00024,7]
[405816440,1771333864708,-980.10045765,0.00024012,69]
[405816441,1771333864717,-750.0,0.0002411,2]
[405816442,1771333864727,-550.0,0.0002411,2]
[405816443,1771333864736,-2137.65287908,0.00024142,2]
[405816444,1771333864745,-444.44370539,0.00024247,2]
[405816445,1771333864755,-980.10045765,0.00024479,72]
[405816446,1771333864828,-175378.02255958,0.000245,2]
[405816447,1771333864837,-174.04,0.000245,7]
[405816448,1771333864847,-516.33548099,0.0002465,2]
[405816449,1771333864856,-67090.76287046,0.0002465,2]
[405816450,1771333865116,-560.26744413,0.00015219,2]
[405816451,1771333865126,-500.0,0.00015219,2]
[405816452,1771333865136,-500.0,0.00017534,2]
[405816453,1771333865147,-177.47502497,0.00017808,2]
[405816454,1771333865157,-461.12220756,0.00017808,2]
[405816455,1771333865170,-500.0,0.0002,2]
[405816456,1771333865180,-1053.377967,0.0002,2]
[405816457,1771333865189,-500.0,0.00020273,2]
[405816458,1771333865199,-500.0,0.00020547,2]
[405816459,1771333865209,-520.27725134,0.00020821,2]
[405816460,1771333865223,-21710.09391985,0.00021917,2]
[405816461,1771333865250,-276.87745749,0.00021917,2]
[405816462,1771333865272,-295.25400852,0.00021917,2]
[405816463,1771333865297,-613.38811587,0.00021917,2]
[405816464,1771333865319,-489.85928013,0.00021917,2]
[405816465,1771333865341,-1643.9020682,0.00021917,2]
[405816466,1771333865363,-2131.58874389,0.00021917,2]
[405816467,1771333865417,-2627.54338972,0.00021917,2]
[405816478,1771333938400,321.86105647,0.00013905,2]
[405816754,1771334729463,313.72,0.00014,2]
[405816759,1771334843134,-208.59521293,0.00014147,2]
[405816760,1771334843155,-15.11088197,0.00014147,2]
[405816761,1771334851082,-181.105171,0.00014147,2]
[405816762,1771334851109,-622.0,0.00014147,2]
[405816763,1771334851135,-480.0,0.00015354,2]
[405816764,1771334851161,-257.33372467,0.00015354,5]
[405816819,1771335032361,-790.10777678,0.00015354,5]
[405816821,1771335032372,-196.89799551,0.00015354,2]
[405816823,1771335032382,-300.0,0.00015354,2]
[405816825,1771335032393,-641.0,0.00015354,2]
[405816827,1771335032403,-322.87773041,0.00015354,2]
[405816829,1771335032413,-126.66615251,0.00015354,2]
[405816906,1771335038464,-515.08575657,0.00015354,2]
[405816907,1771335038475,-231.34817357,0.00015354,2]
[405816908,1771335038485,-1334.37618163,0.00015355,2]
[405816909,1771335038522,-7439.6193443,0.00015355,2]
[405817127,1771335040773,-340.405,0.00015355,2]
[405817134,1771335040830,-1884.76879135,0.00015355,2]
[405817618,1771335046001,-1028.33786601,0.00015355,2]
[405817619,1771335046060,-529.76911313,0.00015355,2]
[405817668,1771335100824,-2627.54338972,0.00015353,2]
[405817686,1771335138350,500.0,0.00012793,2]
[405817687,1771335139117,500.0,0.00013363,2]
[405817753,1771335912679,1000.0,0.00014,2]
[405817754,1771335951126,-716.87650718,0.00014677,2]
[405817759,1771336046088,-154.04388957,0.00014751,2]
[405817765,1771336231554,-196.41915781,0.0001477,2]
[405817767,1771336231563,-614.8200938,0.00014789,2]
[405817769,1771336231574,-265.505643,0.00014825,2]
[405817771,1771336231585,-177.498764,0.00015068,2]
[405817772,1771336231595,-300.0,0.00015351,2]
[405817774,1771336231608,-300.0,0.00015351,2]
[405817776,1771336231619,-300.0,0.00015351,2]
[405817777,1771336231629,-300.0,0.00015351,2]
[405817778,1771336231640,-1200.0,0.00015351,2]
[405817779,1771336231651,-412.79104857,0.00015352,2]
[405817780,1771336231663,-2268.3185343,0.00015352,2]
[405817781,1771336231673,-782.23960502,0.00015353,2]
[405817825,1771336238414,-477.31704646,0.00015353,2]
[405817827,1771336238442,-4858.04697438,0.00015355,2]
[405817829,1771336238456,-1000.76427012,0.000156,2]
[405817831,1771336238472,-500.0,0.00015837,2]
[405817833,1771336238484,-556.15805501,0.00015837,2]
[405817835,1771336238499,-207.08432743,0.00015974,2]
[405817837,1771336238512,-500.0,0.00015983,2]
[405817839,1771336238524,-10900.16097948,0.00015983,2]
[405817840,1771336238535,-1825.680611,0.00016105,2]
[405817842,1771336238547,-500.0,0.00016437,2]
[405817844,1771336238561,-500.0,0.00016437,2]
[405817846,1771336238574,-635.33111534,0.00016438,2]
[405817849,1771336238586,-500.0,0.00016438,2]
[405817850,1771336238597,-500.0,0.00016438,2]
[405817853,1771336238609,-386.83594004,0.00016438,2]
[405817854,1771336238620,-500.0,0.00016438,2]
[405817856,1771336238632,-5770.68,0.00016438,2]
[405817858,1771336238643,-500.0,0.00016438,2]
[405817860,1771336238655,-156.12449561,0.00016438,2]
[405817862,1771336238667,-500.0,0.00016712,2]
[405817864,1771336238678,-150.0,0.00016712,2]
[405817866,1771336238690,-5770.68,0.00016712,2]
[405817868,1771336238701,-500.0,0.00016712,2]
[405817870,1771336238713,-150.0,0.00016767,2]
[405817872,1771336238726,-231.77460621,0.0001677,2]
[405817874,1771336238738,-1825.680611,0.00016783,2]
[405817876,1771336238748,-420.0,0.00016795,2]
[405817878,1771336238759,-180.0,0.00016795,2]
[405817880,1771336238770,-420.0,0.00016795,2]
[405817882,1771336238781,-150.0,0.00016822,2]
[405817884,1771336238792,-197.0,0.00016876,2]
[405817886,1771336238803,-1680.0,0.0001688,2]
[405817888,1771336238813,-500.0,0.00016985,2]
[405817890,1771336238824,-500.0,0.00016985,2]
[405817892,1771336238839,-500.0,0.00016986,2]
[405817894,1771336238853,-5770.68,0.00016986,2]
[405817896,1771336238862,-193.73360797,0.00016986,2]
[405817898,1771336238874,-500.0,0.00016999,2]
[405817900,1771336238885,-22730.76864562,0.00017,2]
[405817902,1771336238896,-197.37,0.00017159,2]
[405817904,1771336238907,-279.27075147,0.00017259,2]
[405817906,1771336238933,-645.36,0.0001726,2]
[405817907,1771336238943,-5770.68,0.0001726,2]
[405817909,1771336238954,-492.0,0.00017436,2]
[405817911,1771336238966,-272.0,0.00017436,2]
[405817913,1771336238976,-1825.680611,0.00017461,2]
[405817915,1771336238986,-5770.68,0.00017534,2]
[405817917,1771336238997,-500.0,0.00017807,2]
[405817919,1771336239007,-500.0,0.00017807,2]
[405817921,1771336239018,-5770.68,0.00017808,2]
[405817923,1771336239030,-150.0834115,0.00017808,2]
[405817925,1771336239041,-5770.68,0.00018082,2]
[405817927,1771336239053,-743.45912368,0.00018092,2]
[405817929,1771336239064,-1825.680611,0.00018139,2]
[405817931,1771336239076,-648.38,0.00018215,2]
[405817933,1771336239087,-8067.97780397,0.00018215,2]
[405817935,1771336239098,-314.71104371,0.00018355,2]
[405817937,1771336239110,-5770.68,0.00018356,2]
[405817939,1771336239120,-587.0,0.00018375,2]
[405817940,1771336239131,-5770.68,0.0001863,2]
[405817942,1771336239143,-267.13005462,0.0001877,2]
[405817944,1771336239154,-1825.680611,0.00018817,2]
[405817946,1771336239165,-2955.34909669,0.00018869,2]
[405817948,1771336239176,-560.75,0.00018894,3]
[405817951,1771336239189,-5770.68,0.00018904,2]
[405817952,1771336239201,-151.0,0.000191,2]
[405817954,1771336239211,-5770.68,0.00019178,2]
[405817956,1771336239222,-1477.67454835,0.00019286,2]
[405817959,1771336239237,-5770.68,0.00019452,2]
[405817961,1771336239247,-225.379,0.00019472,2]
[405817963,1771336239257,-1825.680611,0.00019495,2]
[405817965,1771336239268,-3108.56660532,0.00019595,2]
[405817967,1771336239279,-5770.68,0.00019726,2]
[405817968,1771336239289,-151.0,0.000198,2]
[405817970,1771336239302,-1383.74038081,0.0002,2]
[405817972,1771336239312,-195.01473338,0.0002,2]
[405817975,1771336239333,-250.0,0.0002,10]
[405817978,1771336239347,-152.60643497,0.0002,2]
[405817980,1771336239358,-5770.68,0.0002,2]
[405817981,1771336239369,-250.0,0.000201,10]
[405817984,1771336239380,-823.0,0.00020103,2]
[405817985,1771336239390,-168.0,0.00020199,2]
[405817988,1771336239401,-366.471584,0.000202,10]
[405817990,1771336239413,-5770.68,0.00020273,2]
[405817992,1771336239424,-151.0,0.000205,4]
[405817994,1771336239449,-5770.68,0.00020547,2]
[405817996,1771336239460,-153.02554482,0.00020664,5]
[405817997,1771336239471,-184.00560637,0.00020664,5]
[405817999,1771336239481,-168.0,0.00020707,2]
[405818001,1771336239492,-302.48550302,0.0002077,2]
[405818003,1771336239502,-5770.68,0.00020821,2]
[405818005,1771336239513,-560.72,0.00021086,3]
[405818008,1771336239525,-5770.68,0.00021095,2]
[405818009,1771336239535,-151.0,0.000212,3]
[405818011,1771336239546,-5770.68,0.00021369,2]
[405818013,1771336239557,-5770.68,0.00021643,2]
[405818016,1771336239568,-724.87,0.000217,2]
[405818017,1771336239578,-151.0,0.000219,4]
[405818019,1771336239588,-5770.68,0.00021917,2]
[405818021,1771336239598,-150.0,0.00021918,2]
[405818023,1771336239610,-150.0,0.00021918,2]
[405818025,1771336239621,-150.0,0.00021918,2]
[405818027,1771336239631,-1152.0,0.00021994,2]
[405818029,1771336239641,-166.21,0.00022,7]
[405818032,1771336239652,-5770.68,0.00022191,2]
[405818035,1771336239663,-265.505643,0.00022238,2]
[405818038,1771336239675,-319.62071914,0.00022465,2]
[405818041,1771336239686,-365.28082188,0.00022465,2]
[405818044,1771336239697,-570.1805329,0.00022465,2]
[405818047,1771336239707,-705.12378351,0.00022465,2]
[405818050,1771336239718,-1269.22281033,0.00022465,2]
[405818054,1771336239730,-2256.39610725,0.00022465,2]
[405818058,1771336239741,-3525.61891757,0.00022465,2]
[405818082,1771336239904,-512.90708175,0.00022465,2]
[405818084,1771336239914,-923.23274715,0.00022465,2]
[405818086,1771336239923,-1641.3026616,0.00022465,2]
[405818088,1771336239940,-2564.53540875,0.00022465,2]
[405818089,1771336239950,-5770.68,0.00022465,2]
[405818091,1771336239960,-250.0,0.00022466,2]
[405818093,1771336239971,-300.0,0.00022466,2]
[405818095,1771336239984,-200.0,0.00022466,2]
[405818097,1771336239994,-174.05,0.000225,7]
[405818099,1771336240004,-151.0,0.000226,5]
[405818101,1771336240015,-600.0,0.00022634,10]
[405818103,1771336240025,-5770.8680811,0.00022739,2]
[405818105,1771336240035,-337.84095143,0.0002277,2]
[405818107,1771336240046,-1848.74539267,0.00023,3]
[405818109,1771336240056,-1344.77750776,0.00023,3]
[405818111,1771336240065,-350.0,0.00023014,2]
[405818113,1771336240076,-450.0,0.00023014,2]
[405818115,1771336240085,-250.0,0.00023014,2]
[405818117,1771336240095,-151.0,0.000232,10]
[405818119,1771336240104,-186.9,0.00023557,3]
[405818121,1771336240114,-444.35798238,0.00023562,2]
[405818123,1771336240125,-600.0,0.00023562,2]
[405818125,1771336240134,-214.46322821,0.00023562,2]
[405818127,1771336240144,-536.91,0.00023562,2]
[405818129,1771336240154,-536.91,0.00023562,2]
[405818131,1771336240164,-536.91,0.00023562,2]
[405818134,1771336240176,-536.91,0.00023562,2]
[405818135,1771336240186,-536.91,0.00023562,2]
[405818137,1771336240196,-536.91,0.00023562,2]
[405818139,1771336240205,-536.91,0.00023562,2]
[405818141,1771336240215,-664.77,0.00023562,2]
[405818143,1771336240224,-3250.6148251,0.00023567,2]
[405818145,1771336240234,-24744.509098,0.00023567,2]
[405818147,1771336240244,-151.0,0.000237,7]
[405818149,1771336240254,-151.0,0.000239,6]
[405818151,1771336240264,-87134.60911898,0.0002399,2]
[405818418,1771336243193,-2268.3185343,0.0002399,2]
[405818912,1771336340584,500.0,0.00013772,2]
[405818921,1771336900779,-1075.6164,0.00014562,2]
[405818922,1771336900814,-2998.57043497,0.00014709,2]
[405818924,1771336930125,-1075.6164,0.00014709,2]
[405818931,1771337137244,-467.48834018,0.00014416,2]
[405818932,1771337137265,-150.60614464,0.00014562,2]
[405818950,1771337229102,-651.63993517,0.00014416,2]
[405818951,1771337229127,-180.38408483,0.00014562,2]
[405818952,1771337229152,-1186.25445595,0.00014709,2]
[405818953,1771337233095,-490.88050853,0.00014709,2]
[405818954,1771337238092,-1006.57786528,0.00014709,2]
[405818980,1771337431722,-1211.48879277,0.00014709,2]
[405818982,1771337431732,-1200.0,0.00015044,2]
[405818984,1771337431742,-7724.91256533,0.00015045,2]
[405818986,1771337431750,-300.0,0.00015143,2]
[405818988,1771337431759,-265.0,0.00015143,2]
[405818990,1771337431769,-300.0,0.00015143,2]
[405818992,1771337431779,-300.0,0.00015144,2]
[405818994,1771337431789,-1678.3644904,0.00015145,2]
[405819000,1771337431836,-268.36861328,0.00015145,2]
[405819066,1771337437932,-325.49225896,0.00015145,2]
[405819085,1771337438072,-500.0,0.00015145,2]
[405819086,1771337438082,-500.0,0.00015145,2]
[405819089,1771337438093,-500.0,0.00015145,2]
[405819091,1771337438102,-500.0,0.00015145,2]
[405819093,1771337438111,-500.0,0.00015145,2]
[405819095,1771337438122,-500.0,0.00015145,2]
[405819097,1771337438131,-500.0,0.00015145,2]
[405819098,1771337438141,-322.3258369,0.00015145,2]
[405819100,1771337438154,-500.0,0.00015145,2]
[405819102,1771337438163,-500.0,0.00015145,2]
[405819104,1771337438173,-500.0,0.00015145,2]
[405819106,1771337438183,-500.0,0.00015145,2]
[405819109,1771337438192,-500.0,0.00015145,2]
[405819111,1771337438202,-500.0,0.00015145,2]
[405819113,1771337438211,-219.6916843,0.00015145,2]
[405819115,1771337438223,-280.3083157,0.00015145,2]
[405819117,1771337438235,-500.0,0.00015145,2]
[405819119,1771337438244,-86.98796062,0.00015145,2]
[405819328,1771337440132,-359.66599974,0.00015145,2]
[405819330,1771337440145,-500.0,0.00015145,2]
[405819332,1771337440157,-500.0,0.00015145,2]
[405819334,1771337440167,-500.0,0.00015145,2]
[405819336,1771337440176,-500.0,0.00015145,2]
[405819338,1771337440187,-500.0,0.00015145,2]